[Event "30th Abu Dhabi Festival A-Open 2024"]
[Site "Abu Dhabi"]
[Date "2024.08.22"]
[Round "7.6"]
[White "Yeremyan, Alen"]
[Black "Felix, Raphael"]
[Result "1-0"]
[ECO "B23"]
[WhiteElo "2279"]
[BlackElo "2054"]
[Annotator "RC"]
[PlyCount "125"]
[EventDate "2024.08.15"]
[EventType "swiss"]
[EventCountry "UAE"]
[SourceTitle "playchess.com"]
[Source "ChessBase"]
[SourceQuality "1"]
[TimeControl "5400+30"]

1. e4 {[%emt 0:00:04]} c5 {[%emt 0:01:20]} 2. Nc3 {[%emt 0:00:07]} d6 {[%emt 0:00:22]} 3. d4 {[%emt 0:00:20]} cxd4 {[%emt 0:00:27]} 4. Qxd4 {[%emt 0:00:05]} Nc6 {[%emt 0:00:30]} 5. Qd2 {[%emt 0:00:05]} g6 {[%emt 0:00:42]} 6. b3 {[%emt 0:00:28]} Bh6 {[%emt 0:00:41]} 7. f4 {[%emt 0:00:29]} Nf6 {[%emt 0:01:05]} 8. Bb2 {[%emt 0:00:35]} O-O {[%emt 0:03:51]} 9. O-O-O {[%emt 0:05:50]} e5 {[%emt 0:15:22]} 10. g3 {[%emt 0:06:35]} exf4 {[%emt 0:00:46]} 11. Kb1 {[%emt 0:27:43]} Bg4 {[%emt 0:13:48]} 12. Re1 {[%emt 0:02:17]} Re8 {[%emt 0:03:28]} 13. h3 {[%emt 0:12:16]} Be6 {[%emt 0:04:16]} 14. Nf3 {[%emt 0:05:00]} Bg7 {[%emt 0:23:33]} 15. gxf4 {[%emt 0:04:45]} d5 {[%emt 0:01:26]} 16. f5 {[%emt 0:05:36]} Bd7 {[%emt 0:11:53]} 17. fxg6 {[%emt 0:03:37]} hxg6 {[%emt 0:00:06]} 18. e5 {[%emt 0:08:29]} Ne4 {[%emt 0:01:31]} 19. Qxd5 {[%emt 0:01:58]} Nxc3+ {[%emt 0:01:14]} 20. Bxc3 {[%emt 0:00:01]} Qc7 {[%emt 0:00:30]} 21. Bd3 {[%emt 0:05:15]} Be6 {[%emt 0:01:46]} 22. Qe4 {[%emt 0:02:30]} Bf5 {[%emt 0:02:37]} 23. Qc4 {[%emt 0:00:05]} Bxd3 {[%emt 0:01:36]} 24. cxd3 {[%emt 0:00:27]} Qd7 {[%emt 0:00:31]} 25. Rhf1 {[%emt 0:01:10]} Rac8 {[%emt 0:02:20]} 26. Qe4 {[%emt 0:01:06]} Red8 {[%emt 0:02:43]} 27. e6 {[%emt 0:02:24]} Qxe6 {[%emt 0:01:15]} 28. Qxe6 {[%emt 0:00:06]} fxe6 {[%emt 0:00:03]} 29. Bxg7 {[%emt 0:00:08]} Kxg7 {[%emt 0:00:06]} 30. Ng5 {[%emt 0:00:05]} Rd7 {[%emt 0:01:04]} 31. Nxe6+ {[%emt 0:00:23]} Kg8 {[%emt 0:01:32]} 32. Rf6 {[%emt 0:00:59]} Re7 {[%emt 0:01:54]} 33. Rg1 {[%emt 0:01:25]} Ne5 {[%emt 0:00:59]} 34. d4 {[%emt 0:00:33]} Rf7 {[%emt 0:00:22]} 35. dxe5 {[%emt 0:00:11]} Rxf6 {[%emt 0:00:19]} 36. exf6 {[%emt 0:00:05]} Kf7 {[%emt 0:00:04]} 37. Nf4 {[%emt 0:00:43]} Kxf6 {[%emt 0:00:04]} 38. Rg3 {[%emt 0:05:35]} Kf5 39. Rxg6 {[%emt 0:00:00]} Rg8 {[%emt 0:03:54]} 40. Rg4 Rh8 {[%emt 0:00:00]} 41. Kc2 {[%emt 0:00:00]} b5 {[%emt 0:00:00]} 42. Kd3 {[%emt 0:00:00]} a5 {[%emt 0:00:00]} 43. Ke3 {[%emt 0:00:00]} Re8+ {[%emt 0:00:00]} 44. Kf3 {[%emt 0:00:00]} Rd8 {[%emt 0:00:00]} 45. Rg5+ {[%emt 0:00:00]} Kf6 {[%emt 0:00:00]} 46. Rxb5 {[%emt 0:00:00]} a4 {[%emt 0:00:00]} 47. bxa4 {[%emt 0:00:00]} Rc8 {[%emt 0:00:00]} 48. a5 {[%emt 0:00:00]} Rc2 {[%emt 0:00:00]} 49. Kg4 {[%emt 0:00:00]} Rxa2 {[%emt 0:00:00]} 50. Rb6+ {[%emt 0:00:00]} Kg7 {[%emt 0:00:00]} 51. a6 {[%emt 0:00:00]} Ra1 {[%emt 0:00:00]} 52. h4 {[%emt 0:00:00]} Rg1+ {[%emt 0:00:06]} 53. Kf5 {[%emt 0:00:00]} Ra1 {[%emt 0:00:16]} 54. Ne6+ {[%emt 0:00:00]} Kh6 {[%emt 0:00:15]} 55. Nc7+ {[%emt 0:00:00]} Kh5 {[%emt 0:00:06]} 56. Rb7 {[%emt 0:00:00]} Rf1+ {[%emt 0:00:33]} 57. Ke4 {[%emt 0:00:00]} Kg4 {[%emt 0:00:11]} 58. a7 {[%emt 0:00:00]} Re1+ {[%emt 0:00:05]} 59. Kd3 {[%emt 0:00:00]} Kf3 {[%emt 0:00:07]} 60. a8=Q {[%emt 0:00:00]} Re3+ {[%emt 0:00:06]} 61. Kd4 {[%emt 0:00:00]} Re4+ {[%emt 0:00:05]} 62. Kd5 {[%emt 0:00:00]} Kf4 {[%emt 0:00:06]} 63. Qf8+ {[%emt 0:00:00]} 1-0

[Event "30th Abu Dhabi Festival A-Open 2024"]
[Site "Abu Dhabi"]
[Date "2024.08.22"]
[Round "7.7"]
[White "Kuandykuly, Danis"]
[Black "Arellano, Bryle"]
[Result "1/2-1/2"]
[ECO "B10"]
[WhiteElo "2224"]
[BlackElo "2034"]
[Annotator "RC"]
[PlyCount "158"]
[EventDate "2024.08.15"]
[EventType "swiss"]
[EventCountry "UAE"]
[SourceTitle "playchess.com"]
[Source "ChessBase"]
[SourceQuality "1"]
[TimeControl "5400+30"]

1. e4 {[%emt 0:00:06]} c6 {[%emt 0:01:16]} 2. Ne2 {[%emt 0:00:18]} d5 {[%emt 0:02:30]} 3. e5 {[%emt 0:00:58]} Bf5 {[%emt 0:06:29]} 4. Ng3 {[%emt 0:00:12]} Bg6 {[%emt 0:00:48]} 5. h4 {[%emt 0:00:07]} h5 {[%emt 0:00:40]} 6. e6 {[%emt 0:00:52]} fxe6 {[%emt 0:03:47]} 7. d4 {[%emt 0:00:03]} Qd6 {[%emt 0:01:05]} 8. Bd3 {[%emt 0:00:17]} Bxd3 {[%emt 0:05:32]} 9. Qxd3 {[%emt 0:00:10]} e5 {[%emt 0:00:11]} 10. Bg5 {[%emt 0:22:35]} Nd7 {[%emt 0:05:05]} 11. Nd2 {[%emt 0:00:33]} g6 {[%emt 0:02:13]} 12. c4 {[%emt 0:18:06]} Bg7 {[%emt 0:10:34]} 13. cxd5 {[%emt 0:09:04]} cxd5 {[%emt 0:00:22]} 14. dxe5 {[%emt 0:00:37]} Nxe5 {[%emt 0:06:08]} 15. Qb3 {[%emt 0:01:29]} Qa6 {[%emt 0:00:34]} 16. Ne2 {[%emt 0:15:33]} Nd3+ {[%emt 0:01:52]} 17. Kf1 {[%emt 0:00:13]} Nf6 {[%emt 0:09:10]} 18. Rh3 {[%emt 0:02:32]} Nc5 {[%emt 0:01:37]} 19. Qc2 {[%emt 0:00:39]} Nfe4 {[%emt 0:12:51]} 20. Nxe4 {[%emt 0:03:46]} Nxe4 {[%emt 0:00:03]} 21. Rf3 {[%emt 0:00:29]} Rf8 {[%emt 0:04:10]} 22. Rxf8+ {[%emt 0:05:31]} Kxf8 {[%emt 0:00:02]} 23. Kg1 {[%emt 0:06:15]} Qc4 {[%emt 0:09:48]} 24. Qd1 {[%emt 0:01:23]} Nxg5 {[%emt 0:00:43]} 25. hxg5 {[%emt 0:00:09]} Bxb2 {[%emt 0:00:38]} 26. Rb1 {[%emt 0:00:13]} Be5 {[%emt 0:04:07]} 27. Rxb7 {[%emt 0:02:38]} Rd8 {[%emt 0:01:48]} 28. Qd2 {[%emt 0:01:10]} Qc6 {[%emt 0:06:59]} 29. Rb3 {[%emt 0:02:52]} d4 {[%emt 0:00:29]} 30. Qd3 {[%emt 0:01:13]} Kg7 {[%emt 0:01:37]} 31. Ra3 {[%emt 0:01:57]} Rc8 {[%emt 0:01:46]} 32. Rxa7 {[%emt 0:01:25]} Kf8 {[%emt 0:00:49]} 33. g3 {[%emt 0:00:35]} Qc2 {[%emt 0:00:21]} 34. Qf3+ {[%emt 0:01:18]} Qf5 {[%emt 0:00:49]} 35. Qxf5+ {[%emt 0:02:08]} gxf5 {[%emt 0:00:01]} 36. Rd7 {[%emt 0:00:22]} Rc4 {[%emt 0:00:46]} 37. Rd5 {[%emt 0:00:40]} d3 {[%emt 0:00:45]} 38. Rxd3 {[%emt 0:00:19]} Kf7 {[%emt 0:00:28]} 39. Rd2 {[%emt 0:00:42]} Bd6 {[%emt 0:00:24]} 40. Kg2 {[%emt 0:00:18]} h4 {[%emt 0:00:34]} 41. Nd4 {[%emt 0:00:41]} Bb4 {[%emt 0:00:35]} 42. Rd3 {[%emt 0:00:30]} hxg3 {[%emt 0:00:02]} 43. Kxg3 {[%emt 0:00:31]} Kg6 {[%emt 0:00:00]} 44. Nf3 {[%emt 0:00:28]} Bd6+ {[%emt 0:00:15]} 45. Kg2 {[%emt 0:00:08]} Ra4 {[%emt 0:00:08]} 46. Rd2 {[%emt 0:00:32]} Ra6 {[%emt 0:00:41]} 47. Re2 {[%emt 0:00:12]} Ra5 {[%emt 0:00:36]} 48. Re6+ {[%emt 0:01:07]} Kf7 {[%emt 0:00:06]} 49. Re2 {[%emt 0:00:04]} Kg6 {[%emt 0:00:39]} 50. Rc2 {[%emt 0:00:35]} Ra6 {[%emt 0:00:39]} 51. Rb2 {[%emt 0:00:46]} e5 {[%emt 0:00:21]} 52. Rb5 {[%emt 0:00:10]} e4 {[%emt 0:01:32]} 53. Nh4+ {[%emt 0:00:07]} Kxg5 {[%emt 0:00:19]} 54. Nxf5 {[%emt 0:00:04]} Kf4 {[%emt 0:01:10]} 55. Ne3 {[%emt 0:01:15]} Be5 {[%emt 0:00:13]} 56. Rb7 {[%emt 0:01:01]} Kg5 {[%emt 0:00:48]} 57. Rf7 {[%emt 0:00:31]} Bd4 {[%emt 0:00:17]} 58. Nc2 {[%emt 0:00:30]} Be5 {[%emt 0:00:37]} 59. a3 {[%emt 0:00:21]} Bb2 {[%emt 0:00:11]} 60. Re7 {[%emt 0:00:38]} Kf4 {[%emt 0:00:01]} 61. Rd7 {[%emt 0:00:28]} Rc6 {[%emt 0:00:45]} 62. Ne3 {[%emt 0:00:10]} Rg6+ {[%emt 0:00:37]} 63. Kf1 {[%emt 0:00:10]} Bxa3 {[%emt 0:00:34]} 64. Rf7+ {[%emt 0:00:28]} Ke5 {[%emt 0:00:34]} 65. Nc4+ {[%emt 0:00:56]} Ke6 {[%emt 0:00:02]} 66. Rf4 {[%emt 0:00:24]} Bc5 {[%emt 0:01:06]} 67. Rxe4+ {[%emt 0:00:34]} Kd5 {[%emt 0:00:02]} 68. Rf4 {[%emt 0:00:11]} Ra6 {[%emt 0:00:58]} 69. Nd2 {[%emt 0:01:41]} Ra1+ {[%emt 0:00:32]} 70. Kg2 {[%emt 0:00:00]} Ra2 {[%emt 0:00:21]} 71. Ne4 {[%emt 0:00:00]} Ke5 {[%emt 0:00:23]} 72. Rg4 {[%emt 0:00:31]} Kf5 {[%emt 0:00:28]} 73. Rh4 {[%emt 0:00:07]} Be7 {[%emt 0:00:32]} 74. Ng3+ {[%emt 0:00:08]} Kg6 {[%emt 0:00:19]} 75. Rg4+ {[%emt 0:00:19]} Kf7 {[%emt 0:00:05]} 76. Ne4 {[%emt 0:00:38]} Ke6 {[%emt 0:00:20]} 77. Kh3 {[%emt 0:00:46]} Ra3+ {[%emt 0:00:17]} 78. Ng3 {[%emt 0:00:11]} Bd6 {[%emt 0:00:37]} 79. f4 {[%emt 0:00:16]} Rf3 {[%emt 0:01:36]} 1/2-1/2

[Event "30th Abu Dhabi Festival A-Open 2024"]
[Site "Abu Dhabi"]
[Date "2024.08.22"]
[Round "7.8"]
[White "Saif, Ahmed"]
[Black "Fadi, Marko"]
[Result "1/2-1/2"]
[ECO "B38"]
[WhiteElo "2022"]
[BlackElo "2221"]
[Annotator "RC"]
[PlyCount "40"]
[EventDate "2024.08.15"]
[EventType "swiss"]
[EventCountry "UAE"]
[SourceTitle "playchess.com"]
[Source "ChessBase"]
[SourceQuality "1"]
[TimeControl "5400+30"]

1. e4 {[%emt 0:00:43]} c5 {[%emt 0:00:08]} 2. Nf3 {[%emt 0:00:05]} Nc6 {[%emt 0:00:12]} 3. d4 {[%emt 0:00:11]} cxd4 {[%emt 0:00:06]} 4. Nxd4 {[%emt 0:00:05]} g6 {[%emt 0:00:04]} 5. c4 {[%emt 0:00:06]} Bg7 {[%emt 0:00:05]} 6. Be3 {[%emt 0:00:06]} Nf6 {[%emt 0:00:03]} 7. Nc3 {[%emt 0:00:06]} O-O {[%emt 0:00:06]} 8. Be2 {[%emt 0:00:18]} Nxd4 {[%emt 0:00:05]} 9. Bxd4 {[%emt 0:00:06]} d6 {[%emt 0:00:07]} 10. O-O {[%emt 0:02:00]} Bd7 {[%emt 0:00:37]} 11. Qd2 {[%emt 0:01:23]} Bc6 {[%emt 0:00:17]} 12. f3 {[%emt 0:00:05]} a5 {[%emt 0:00:04]} 13. b3 {[%emt 0:01:59]} Nd7 {[%emt 0:00:07]} 14. Bf2 {[%emt 0:00:09]} Nc5 {[%emt 0:02:20]} 15. Rac1 {[%emt 0:11:11]} Qb6 {[%emt 0:09:47]} 16. Nb5 {[%emt 0:12:18]} Rfc8 {[%emt 0:06:34]} 17. Rfd1 {[%emt 0:01:31]} Qd8 {[%emt 0:01:29]} 18. Nc3 {[%emt 0:04:40]} Qb6 {[%emt 0:07:24]} 19. Nb5 {[%emt 0:00:33]} Qd8 {[%emt 0:04:21]} 20. Nc3 {[%emt 0:03:50]} Qb6 {[%emt 0:04:05]} 1/2-1/2

[Event "30th Abu Dhabi Festival A-Open 2024"]
[Site "Abu Dhabi"]
[Date "2024.08.22"]
[Round "7.9"]
[White "Abdullayev, Elshad"]
[Black "Andreasyan, Edgar"]
[Result "0-1"]
[ECO "E05"]
[WhiteElo "2205"]
[BlackElo "2027"]
[Annotator "RC"]
[PlyCount "80"]
[EventDate "2024.08.15"]
[EventType "swiss"]
[EventCountry "UAE"]
[SourceTitle "playchess.com"]
[Source "ChessBase"]
[SourceQuality "1"]
[TimeControl "5400+30"]

1. Nf3 {[%emt 0:00:09]} d5 {[%emt 0:00:19]} 2. d4 {[%emt 0:00:31]} Nf6 {[%emt 0:00:11]} 3. c4 {[%emt 0:00:03]} e6 {[%emt 0:00:06]} 4. g3 {[%emt 0:00:21]} dxc4 {[%emt 0:02:23]} 5. Bg2 {[%emt 0:01:36]} a6 {[%emt 0:01:04]} 6. O-O {[%emt 0:03:57]} Nc6 {[%emt 0:01:26]} 7. Nc3 {[%emt 0:07:11]} Rb8 {[%emt 0:23:01]} 8. e4 {[%emt 0:24:36]} Be7 {[%emt 0:09:03]} 9. Be3 {[%emt 0:39:24]} O-O {[%emt 0:02:37]} 10. Qe2 {[%emt 0:00:49]} b5 {[%emt 0:03:27]} 11. Rad1 {[%emt 0:01:00]} Bb7 {[%emt 0:11:59]} 12. a3 {[%emt 0:09:42]} Qe8 {[%emt 0:05:59]} 13. e5 {[%emt 0:02:04]} Nd5 {[%emt 0:02:21]} 14. Nxd5 {[%emt 0:00:34]} exd5 {[%emt 0:00:02]} 15. Ng5 {[%emt 0:03:23]} Nd8 {[%emt 0:03:53]} 16. f4 {[%emt 0:01:25]} Bxg5 {[%emt 0:02:13]} 17. fxg5 {[%emt 0:00:01]} Ne6 {[%emt 0:00:08]} 18. Bh3 {[%emt 0:01:45]} Qe7 {[%emt 0:01:22]} 19. Rf6 {[%emt 0:00:33]} c5 {[%emt 0:04:36]} 20. Qh5 {[%emt 0:00:24]} cxd4 {[%emt 0:12:22]} 21. Rxd4 {[%emt 0:00:53]} Nxd4 {[%emt 0:05:47]} 22. Bxd4 {[%emt 0:00:01]} Bc8 {[%emt 0:00:20]} 23. Bg2 {[%emt 0:01:06]} Rd8 {[%emt 0:00:33]} 24. Rf4 {[%emt 0:00:31]} Qe6 {[%emt 0:00:07]} 25. Qf3 {[%emt 0:00:26]} b4 {[%emt 0:01:21]} 26. axb4 {[%emt 0:00:01]} Rxb4 {[%emt 0:00:09]} 27. h4 {[%emt 0:00:04]} Rb3 {[%emt 0:00:49]} 28. Qf2 {[%emt 0:00:01]} Qg6 {[%emt 0:00:47]} 29. e6 {[%emt 0:01:54]} Bxe6 {[%emt 0:00:10]} 30. Kh2 {[%emt 0:00:25]} a5 {[%emt 0:01:24]} 31. Qe1 {[%emt 0:00:10]} a4 {[%emt 0:01:49]} 32. Qe5 {[%emt 0:00:11]} h6 {[%emt 0:01:03]} 33. Bf3 {[%emt 0:01:16]} hxg5 {[%emt 0:01:25]} 34. hxg5 {[%emt 0:00:20]} Rdb8 {[%emt 0:00:18]} 35. Bxd5 {[%emt 0:00:41]} Rxb2+ {[%emt 0:01:04]} 36. Bxb2 {[%emt 0:00:05]} Qc2+ {[%emt 0:00:11]} 37. Kg1 {[%emt 0:00:40]} Rxb2 {[%emt 0:00:39]} 38. Be4 {[%emt 0:00:42]} Qh2+ {[%emt 0:00:10]} 39. Kf1 {[%emt 0:00:07]} Bh3+ {[%emt 0:00:06]} 40. Ke1 {[%emt 0:00:04]} Qd2# {[%emt 0:00:12]} 0-1

[Event "30th Abu Dhabi Festival A-Open 2024"]
[Site "Abu Dhabi"]
[Date "2024.08.22"]
[Round "7.10"]
[White "Talgatov, Nazar"]
[Black "Soud, Jaber"]
[Result "1/2-1/2"]
[ECO "C65"]
[WhiteElo "2171"]
[BlackElo "1962"]
[Annotator "RC"]
[PlyCount "70"]
[EventDate "2024.08.15"]
[EventType "swiss"]
[EventCountry "UAE"]
[SourceTitle "playchess.com"]
[Source "ChessBase"]
[SourceQuality "1"]
[TimeControl "5400+30"]

1. e4 {[%emt 0:00:24]} e5 {[%emt 0:03:02]} 2. Nf3 {[%emt 0:00:26]} Nc6 {[%emt 0:00:11]} 3. Bb5 {[%emt 0:00:08]} Nf6 {[%emt 0:00:14]} 4. d3 {[%emt 0:02:47]} Bc5 {[%emt 0:00:52]} 5. O-O {[%emt 0:00:55]} d6 {[%emt 0:00:07]} 6. c3 {[%emt 0:01:41]} O-O {[%emt 0:01:40]} 7. h3 {[%emt 0:00:21]} Bd7 {[%emt 0:05:42]} 8. Nbd2 {[%emt 0:02:54]} a6 {[%emt 0:03:22]} 9. Ba4 {[%emt 0:00:08]} Ne7 {[%emt 0:00:27]} 10. d4 {[%emt 0:03:06]} Bxa4 {[%emt 0:02:31]} 11. Qxa4 {[%emt 0:00:22]} b5 {[%emt 0:00:39]} 12. Qc2 {[%emt 0:00:49]} exd4 {[%emt 0:00:17]} 13. cxd4 {[%emt 0:00:05]} Bb6 {[%emt 0:00:11]} 14. Re1 {[%emt 0:03:09]} Ng6 {[%emt 0:02:15]} 15. a4 {[%emt 0:03:16]} Re8 {[%emt 0:03:48]} 16. Nf1 {[%emt 0:06:20]} c5 {[%emt 0:04:06]} 17. d5 {[%emt 0:00:52]} c4 {[%emt 0:01:01]} 18. Ng3 {[%emt 0:02:37]} Nd7 {[%emt 0:04:37]} 19. Be3 {[%emt 0:07:52]} Nde5 {[%emt 0:06:51]} 20. Nxe5 {[%emt 0:09:29]} Nxe5 {[%emt 0:00:28]} 21. Re2 {[%emt 0:05:18]} Bxe3 {[%emt 0:02:33]} 22. Rxe3 {[%emt 0:00:20]} Qf6 {[%emt 0:01:33]} 23. Rf1 {[%emt 0:08:39]} Nd3 {[%emt 0:10:12]} 24. b3 {[%emt 0:00:17]} Rac8 {[%emt 0:00:16]} 25. axb5 {[%emt 0:01:20]} axb5 {[%emt 0:00:07]} 26. bxc4 {[%emt 0:00:19]} bxc4 {[%emt 0:00:09]} 27. Rf3 {[%emt 0:02:12]} Qe5 {[%emt 0:04:52]} 28. Rb1 {[%emt 0:02:48]} g6 {[%emt 0:02:23]} 29. Re3 {[%emt 0:09:07]} h5 {[%emt 0:03:35]} 30. Nf1 {[%emt 0:01:11]} Qf6 {[%emt 0:05:56]} 31. Rb7 {[%emt 0:01:14]} Rb8 {[%emt 0:02:42]} 32. Rf3 {[%emt 0:11:12]} Qxf3 {[%emt 0:00:41]} 33. Rxb8 {[%emt 0:02:44]} Qxe4 {[%emt 0:00:02]} 34. Rxe8+ {[%emt 0:00:06]} Qxe8 {[%emt 0:00:07]} 35. Qxc4 {[%emt 0:00:09]} Qe2 {[%emt 0:00:54]} 1/2-1/2

[Event "30th Abu Dhabi Festival A-Open 2024"]
[Site "Abu Dhabi"]
[Date "2024.08.22"]
[Round "7.11"]
[White "UNWANA, Eugene Ekpoikong"]
[Black "Wen, Gehua"]
[Result "0-1"]
[ECO "C11"]
[WhiteElo "2042"]
[BlackElo "2119"]
[Annotator "RC"]
[PlyCount "82"]
[EventDate "2024.08.15"]
[EventType "swiss"]
[EventCountry "UAE"]
[SourceTitle "playchess.com"]
[Source "ChessBase"]
[SourceQuality "1"]
[TimeControl "5400+30"]

1. e4 {[%emt 0:00:16]} e6 {[%emt 0:00:10]} 2. d4 {[%emt 0:00:09]} d5 {[%emt 0:00:05]} 3. Nc3 {[%emt 0:00:15]} Nf6 {[%emt 0:00:09]} 4. e5 {[%emt 0:00:16]} Nfd7 {[%emt 0:00:08]} 5. Nf3 {[%emt 0:00:08]} c5 {[%emt 0:00:31]} 6. dxc5 {[%emt 0:00:05]} Nc6 {[%emt 0:03:59]} 7. Bf4 {[%emt 0:00:08]} Nxc5 {[%emt 0:02:19]} 8. Be2 {[%emt 0:00:12]} Be7 {[%emt 0:00:10]} 9. a3 {[%emt 0:00:09]} a6 {[%emt 0:07:33]} 10. O-O {[%emt 0:00:22]} f5 {[%emt 0:02:02]} 11. exf6 {[%emt 0:01:05]} Bxf6 {[%emt 0:00:02]} 12. Re1 {[%emt 0:00:27]} O-O {[%emt 0:01:08]} 13. Bg3 {[%emt 1:33:28]} d4 {[%emt 0:16:15]} 14. b4 {[%emt 0:00:00]} d3 {[%emt 0:02:35]} 15. bxc5 {[%emt 0:00:00]} dxe2 {[%emt 0:02:41]} 16. Nxe2 {[%emt 0:00:00]} Bxa1 {[%emt 0:00:44]} 17. Qxa1 {[%emt 0:00:00]} Qf6 {[%emt 0:03:04]} 18. Qb1 {[%emt 0:00:00]} e5 {[%emt 0:04:14]} 19. Nc3 {[%emt 0:00:00]} Bg4 {[%emt 0:07:36]} 20. Bh4 {[%emt 0:00:00]} Qh6 {[%emt 0:08:08]} 21. Qb3+ {[%emt 0:00:00]} Kh8 {[%emt 0:02:04]} 22. Bg5 {[%emt 0:00:00]} Qg6 {[%emt 0:06:02]} 23. Nxe5 {[%emt 0:00:00]} Nxe5 {[%emt 0:06:36]} 24. Rxe5 {[%emt 0:00:00]} Rae8 {[%emt 0:00:09]} 25. Rxe8 {[%emt 0:00:00]} Rxe8 {[%emt 0:00:01]} 26. h4 {[%emt 0:00:00]} h6 {[%emt 0:01:15]} 27. Bf4 {[%emt 0:00:00]} Bf3 {[%emt 0:00:26]} 28. Bg3 {[%emt 0:00:00]} Bc6 {[%emt 0:00:06]} 29. Nd5 {[%emt 0:00:00]} Qe4 {[%emt 0:01:26]} 30. c4 {[%emt 0:00:00]} Qd4 {[%emt 0:02:55]} 31. Nf4 {[%emt 0:00:00]} Re1+ {[%emt 0:03:42]} 32. Kh2 {[%emt 0:00:00]} Qa1 {[%emt 0:06:12]} 33. Ng6+ {[%emt 0:00:00]} Kh7 {[%emt 0:00:01]} 34. Nf8+ {[%emt 0:00:00]} Kg8 {[%emt 0:00:04]} 35. Bd6 {[%emt 0:00:00]} Rh1+ {[%emt 0:00:12]} 36. Kg3 {[%emt 0:00:00]} Qg1 {[%emt 0:00:38]} 37. f3 {[%emt 0:00:00]} Qe1+ {[%emt 0:05:03]} 38. Kf4 {[%emt 0:00:00]} Rxh4+ {[%emt 0:00:06]} 39. g4 {[%emt 0:00:00]} Rh3 {[%emt 0:00:07]} 40. Qd3 {[%emt 0:00:00]} Rxf3+ {[%emt 0:00:26]} 41. Qxf3 {[%emt 0:00:00]} g5+ {[%emt 0:00:04]} 0-1

[Event "30th Abu Dhabi Festival A-Open 2024"]
[Site "Abu Dhabi"]
[Date "2024.08.23"]
[Round "8.1"]
[White "Manukyan, Sargis A."]
[Black "Rzayev, Chingiz"]
[Result "0-1"]
[ECO "D39"]
[WhiteElo "2211"]
[BlackElo "2134"]
[Annotator "RC"]
[PlyCount "80"]
[EventDate "2024.08.15"]
[EventType "swiss"]
[EventCountry "UAE"]
[SourceTitle "playchess.com"]
[Source "ChessBase"]
[SourceQuality "1"]
[TimeControl "5400+30"]

1. d4 {[%emt 0:00:03]} d5 {[%emt 0:00:26]} 2. c4 {[%emt 0:00:05]} dxc4 {[%emt 0:00:18]} 3. Nf3 {[%emt 0:01:48]} Nf6 {[%emt 0:03:17]} 4. Nc3 {[%emt 0:00:20]} e6 {[%emt 0:00:44]} 5. e4 {[%emt 0:00:30]} Bb4 {[%emt 0:07:26]} 6. Bg5 {[%emt 0:06:04]} h6 {[%emt 0:05:34]} 7. Qa4+ {[%emt 0:02:48]} Nc6 {[%emt 0:00:05]} 8. Bxf6 {[%emt 0:00:05]} Qxf6 {[%emt 0:00:20]} 9. Bxc4 {[%emt 0:00:12]} Bd7 {[%emt 0:05:22]} 10. Qb3 {[%emt 0:06:30]} Qe7 {[%emt 0:21:38]} 11. Bd3 {[%emt 0:00:22]} Ba5 {[%emt 0:07:14]} 12. O-O {[%emt 0:04:32]} Qb4 {[%emt 0:14:56]} 13. d5 {[%emt 0:02:16]} Nd4 {[%emt 0:05:55]} 14. Nxd4 {[%emt 0:02:45]} Qxd4 {[%emt 0:00:04]} 15. dxe6 {[%emt 0:08:08]} fxe6 {[%emt 0:06:47]} 16. Bb5 {[%emt 0:12:15]} c6 {[%emt 0:01:31]} 17. Bc4 {[%emt 0:04:05]} O-O-O {[%emt 0:00:33]} 18. Rad1 {[%emt 0:06:10]} Qe5 {[%emt 0:03:51]} 19. f4 {[%emt 0:00:37]} Qc5+ {[%emt 0:00:03]} 20. Kh1 {[%emt 0:00:04]} e5 {[%emt 0:00:08]} 21. Rxd7 {[%emt 0:08:00]} Rxd7 {[%emt 0:00:05]} 22. Be6 {[%emt 0:00:04]} Rhd8 {[%emt 0:00:06]} 23. Rd1 {[%emt 0:05:53]} Qe7 {[%emt 0:03:59]} 24. fxe5 {[%emt 0:02:42]} Kc7 {[%emt 0:04:26]} 25. Bxd7 {[%emt 0:00:31]} Rxd7 {[%emt 0:00:11]} 26. Rxd7+ {[%emt 0:03:40]} Qxd7 {[%emt 0:00:04]} 27. h3 {[%emt 0:00:44]} b5 {[%emt 0:02:43]} 28. Qa3 {[%emt 0:03:23]} Bb6 {[%emt 0:00:48]} 29. Qf8 {[%emt 0:00:20]} Bd4 {[%emt 0:00:16]} 30. Qb4 {[%emt 0:02:51]} Bf2 {[%emt 0:02:35]} 31. Qf8 {[%emt 0:11:38]} Qd2 {[%emt 0:00:26]} 32. Kh2 {[%emt 0:00:44]} Be3 {[%emt 0:00:50]} 33. Qf7+ {[%emt 0:01:27]} Kb6 {[%emt 0:00:34]} 34. Qf1 {[%emt 0:01:50]} Bf4+ {[%emt 0:00:09]} 35. Kh1 {[%emt 0:00:23]} Bxe5 {[%emt 0:00:05]} 36. Ne2 {[%emt 0:01:25]} Qxb2 {[%emt 0:00:32]} 37. Ng1 {[%emt 0:00:28]} Qxa2 {[%emt 0:00:39]} 38. Nf3 {[%emt 0:00:04]} Qa1 {[%emt 0:00:07]} 39. Ne1 {[%emt 0:01:22]} Bg3 {[%emt 0:00:12]} 40. Qg1+ {[%emt 0:00:11]} c5 {[%emt 0:00:07]} 0-1